{"text_format":"3","workbook":"xlsx","n_sheets":2,"sheets":["Początek","Plan budżetu świątecznego"],"not_rendered":{"defined_names":1},"read":"whole","date_system":"1900"}

{"sheet":"Początek","index":0,"n_rows":7,"n_cols":2,"rows_kept":7}
[null,"INFORMACJE O TYM SZABLONIE"]
[null,"Ten szablon Plan budżetu świątecznego ułatwia śledzenie wydatków."]
[null,"W tabelach wprowadź budżet i rzeczywiste poniesione wydatki na poszczególne pozycje."]
[null,"Budżet świąteczny, łączna wydana kwota rzeczywiste i różnica są obliczane automatycznie."]
[null,"Uwaga: "]
[null,"W kolumnie A w arkuszu PLAN BUDŻETU ŚWIĄTECZNEGO podano dodatkowe instrukcje. Ten tekst celowo został ukryty. Aby usunąć tekst, zaznacz kolumnę A, a następnie naciśnij klawisz DELETE. Aby odkryć tekst, zaznacz kolumnę A, a następnie zmień kolor czcionki."]
[null,"Aby uzyskać więcej informacji o tabelach, w tabeli naciśnij klawisz SHIFT, a następnie F10, wybierz opcję TABELA, a następnie TEKST ALTERNATYWNY."]

{"sheet":"Plan budżetu świątecznego","index":1,"n_rows":32,"n_cols":12,"rows_kept":32,"merged":[[1,1,5,4],[2,8,2,9],[3,8,3,9],[4,8,4,9],[6,1,6,4],[6,8,6,11],[15,1,15,4],[15,8,15,11],[25,1,25,4],[25,8,25,11]]}
["Wprowadź budżet i poniesione wydatki rzeczywiste dla każdej kategorii w odpowiednich tabelach w tym arkuszu. W komórkach w tej kolumnie podano przydatne instrukcje na temat korzystania z tego arkusza. Naciśnij strzałkę w dół, aby rozpocząć pracę. "]
["W komórce z prawej strony znajduje się tytuł tego arkusza.","Budżet świąteczny \nPlan"]
["Budżet świąteczny jest obliczany automatycznie w komórce K3.",{"$nulls":7},"BUDŻET ŚWIĄTECZNY",null,{"$f":"SUM(Prezenty[Budżet],Opakowania[Budżet],(Podróże[Budżet],(Posiłki[Budżet],(Rozrywka[Budżet],Różne[Budżet]))))","v":{"v":750,"d":"750.00 zł"}}]
["Rzeczywiste wydatki są obliczane automatycznie w komórce K4.",{"$nulls":7},"RZECZYWISTE WYDATKI",null,{"$f":"SUM((Prezenty[Rzeczywiste],(Opakowania[Rzeczywiste],(Podróże[Rzeczywiste],(Posiłki[Rzeczywiste],(Rozrywka[Rzeczywiste],(Różne[Rzeczywiste])))))))","v":{"v":820,"d":"820.00 zł"}}]
["Różnica jest obliczana automatycznie w komórce K5. Dalsze instrukcje znajdują się w komórce A7.",{"$nulls":7},"RÓŻNICA (przekroczenie budżetu/w ramach budżetu)",null,{"$f":"SUM(K3-K4)","v":{"v":-70,"d":"-70.00 zł"}}]
[]
["W komórce z Prezenty strony znajduje się etykieta Upominki, a w komórce I7 — etykieta Posiłki świąteczne.","Prezenty",{"$nulls":6},"Posiłki świąteczne"]
["Wprowadź wydatki na prezenty w tabeli zaczynającej się w komórce po prawej stronie oraz wydatki na posiłki w tabeli zaczynającej się w komórce I8. Dalsze instrukcje znajdują się w komórce A16.","Pozycja","Budżet","Rzeczywiste","Różnica",{"$nulls":3},"Pozycja","Budżet","Rzeczywiste","Różnica"]
[null,"Rodzina",{"v":500,"d":"500.00 zł"},{"v":495,"d":"495.00 zł"},{"$f":"Prezenty[[#This Row],[Budżet]]-Prezenty[[#This Row],[Rzeczywiste]]","v":{"v":5,"d":"5.00 zł"}},{"$nulls":3},"Artykuły spożywcze",null,null,{"$f":"Posiłki[[#This Row],[Budżet]]-Posiłki[[#This Row],[Rzeczywiste]]","v":{"v":0,"d":"0.00 zł"}}]
[null,"Znajomi",{"v":250,"d":"250.00 zł"},{"v":325,"d":"325.00 zł"},{"$f":"Prezenty[[#This Row],[Budżet]]-Prezenty[[#This Row],[Rzeczywiste]]","v":{"v":-75,"d":"-75.00 zł"}},{"$nulls":3},"Alkohole",null,null,{"$f":"Posiłki[[#This Row],[Budżet]]-Posiłki[[#This Row],[Rzeczywiste]]","v":{"v":0,"d":"0.00 zł"}}]
[null,"Współpracownicy",null,null,{"$f":"Prezenty[[#This Row],[Budżet]]-Prezenty[[#This Row],[Rzeczywiste]]","v":{"v":0,"d":"0.00 zł"}},{"$nulls":3},"Dekoracje",null,null,{"$f":"Posiłki[[#This Row],[Budżet]]-Posiłki[[#This Row],[Rzeczywiste]]","v":{"v":0,"d":"0.00 zł"}}]
[null,"Nauczyciele, nianie, opiekunki itd.",null,null,{"$f":"Prezenty[[#This Row],[Budżet]]-Prezenty[[#This Row],[Rzeczywiste]]","v":{"v":0,"d":"0.00 zł"}},{"$nulls":3},"Inne (naciśnij klawisz Tab w ostatniej kolumnie tego wiersza, aby dodać wiersz)",null,null,{"$f":"Posiłki[[#This Row],[Budżet]]-Posiłki[[#This Row],[Rzeczywiste]]","v":{"v":0,"d":"0.00 zł"}}]
[null,"Datki charytatywne",null,null,{"$f":"Prezenty[[#This Row],[Budżet]]-Prezenty[[#This Row],[Rzeczywiste]]","v":{"v":0,"d":"0.00 zł"}},{"$nulls":3},"Suma",{"$f":"SUBTOTAL(109,Posiłki[Budżet])","v":{"v":0,"d":"0.00 zł"}},{"$f":"SUBTOTAL(109,Posiłki[Rzeczywiste])","v":{"v":0,"d":"0.00 zł"}},{"$f":"SUBTOTAL(109,Posiłki[Różnica])","v":{"v":0,"d":"0.00 zł"}}]
[null,"Inne (naciśnij klawisz Tab w ostatniej kolumnie tego wiersza, aby dodać wiersz)",null,null,{"$f":"Prezenty[[#This Row],[Budżet]]-Prezenty[[#This Row],[Rzeczywiste]]","v":{"v":0,"d":"0.00 zł"}}]
[null,"Suma",{"$f":"SUBTOTAL(109,Prezenty[Budżet])","v":{"v":750,"d":"750.00 zł"}},{"$f":"SUBTOTAL(109,Prezenty[Rzeczywiste])","v":{"v":820,"d":"820.00 zł"}},{"$f":"SUBTOTAL(109,Prezenty[Różnica])","v":{"v":-70,"d":"-70.00 zł"}}]
["W komórce z prawej strony znajduje się etykieta Opakowania, a w komórce I16 — etykieta Rozrywka.","Opakowania",{"$nulls":6},"Rozrywka"]
["Wprowadź wydatki na opakowania w tabeli zaczynającej się w komórce po prawej stronie oraz wydatki na rozrywka w tabeli zaczynającej się w komórce I17. Dalsze instrukcje znajdują się w komórce A26.","Pozycja","Budżet","Rzeczywiste","Różnica",{"$nulls":3},"Pozycja","Budżet","Rzeczywiste","Różnica"]
[null,"Zawinięcia prezentów",null,null,{"$f":"Opakowania[[#This Row],[Budżet]]-Opakowania[[#This Row],[Rzeczywiste]]","v":{"v":0,"d":"0.00 zł"}},{"$nulls":3},"Pomoc na przyjęciu (barmani, kelnerzy, sprzątaczki itd.)",null,null,{"$f":"Rozrywka[[#This Row],[Budżet]]-Rozrywka[[#This Row],[Rzeczywiste]]","v":{"v":0,"d":"0.00 zł"}}]
[null,"Tagi",null,null,{"$f":"Opakowania[[#This Row],[Budżet]]-Opakowania[[#This Row],[Rzeczywiste]]","v":{"v":0,"d":"0.00 zł"}},{"$nulls":3},"Dekoracje",null,null,{"$f":"Rozrywka[[#This Row],[Budżet]]-Rozrywka[[#This Row],[Rzeczywiste]]","v":{"v":0,"d":"0.00 zł"}}]
[null,"Materiały (wstążki, taśmy itd.)",null,null,{"$f":"Opakowania[[#This Row],[Budżet]]-Opakowania[[#This Row],[Rzeczywiste]]","v":{"v":0,"d":"0.00 zł"}},{"$nulls":3},"Jedzenie i napoje",null,null,{"$f":"Rozrywka[[#This Row],[Budżet]]-Rozrywka[[#This Row],[Rzeczywiste]]","v":{"v":0,"d":"0.00 zł"}}]
[null,"Pudełka",null,null,{"$f":"Opakowania[[#This Row],[Budżet]]-Opakowania[[#This Row],[Rzeczywiste]]","v":{"v":0,"d":"0.00 zł"}},{"$nulls":3},"Ubrania",null,null,{"$f":"Rozrywka[[#This Row],[Budżet]]-Rozrywka[[#This Row],[Rzeczywiste]]","v":{"v":0,"d":"0.00 zł"}}]
[null,"Opłaty pocztowe",null,null,{"$f":"Opakowania[[#This Row],[Budżet]]-Opakowania[[#This Row],[Rzeczywiste]]","v":{"v":0,"d":"0.00 zł"}},{"$nulls":3},"Bilety",null,null,{"$f":"Rozrywka[[#This Row],[Budżet]]-Rozrywka[[#This Row],[Rzeczywiste]]","v":{"v":0,"d":"0.00 zł"}}]
[null,"Inne (naciśnij klawisz Tab w ostatniej kolumnie tego wiersza, aby dodać wiersz)",null,null,{"$f":"Opakowania[[#This Row],[Budżet]]-Opakowania[[#This Row],[Rzeczywiste]]","v":{"v":0,"d":"0.00 zł"}},{"$nulls":3},"Kolacje na mieście",null,null,{"$f":"Rozrywka[[#This Row],[Budżet]]-Rozrywka[[#This Row],[Rzeczywiste]]","v":{"v":0,"d":"0.00 zł"}}]
[null,"Suma",{"$f":"SUBTOTAL(109,Opakowania[Budżet])","v":{"v":0,"d":"0.00 zł"}},{"$f":"SUBTOTAL(109,Opakowania[Rzeczywiste])","v":{"v":0,"d":"0.00 zł"}},{"$f":"SUBTOTAL(109,Opakowania[Różnica])","v":{"v":0,"d":"0.00 zł"}},{"$nulls":3},"Inne (naciśnij klawisz Tab w ostatniej kolumnie tego wiersza, aby dodać wiersz)",null,null,{"$f":"Rozrywka[[#This Row],[Budżet]]-Rozrywka[[#This Row],[Rzeczywiste]]","v":{"v":0,"d":"0.00 zł"}}]
[{"$nulls":8},"Suma",{"$f":"SUBTOTAL(109,Rozrywka[Budżet])","v":{"v":0,"d":"0.00 zł"}},{"$f":"SUBTOTAL(109,Rozrywka[Rzeczywiste])","v":{"v":0,"d":"0.00 zł"}},{"$f":"SUBTOTAL(109,Rozrywka[Różnica])","v":{"v":0,"d":"0.00 zł"}}]
["W komórce z prawej strony znajduje się etykieta Podróże, a w komórce I26 — etykieta Różne.","Podróże",{"$nulls":6},"Różne"]
["Wprowadź wydatki na podróże w tabeli zaczynającej się w komórce po prawej stronie oraz wydatki różne w tabeli zaczynającej się w komórce I27.","Pozycja","Budżet","Rzeczywiste","Różnica",{"$nulls":3},"Pozycja","Budżet","Rzeczywiste","Różnica"]
[null,"Koszt przelotu",null,null,{"$f":"Podróże[[#This Row],[Budżet]]-Podróże[[#This Row],[Rzeczywiste]]","v":{"v":0,"d":"0.00 zł"}},{"$nulls":3},"Zdjęcia świąteczne",null,null,{"$f":"Różne[[#This Row],[Budżet]]-Różne[[#This Row],[Rzeczywiste]]","v":{"v":0,"d":"0.00 zł"}}]
[null,"Zakwaterowanie",null,null,{"$f":"Podróże[[#This Row],[Budżet]]-Podróże[[#This Row],[Rzeczywiste]]","v":{"v":0,"d":"0.00 zł"}},{"$nulls":3},"Paliwo ",null,null,{"$f":"Różne[[#This Row],[Budżet]]-Różne[[#This Row],[Rzeczywiste]]","v":{"v":0,"d":"0.00 zł"}}]
[null,"Transport",null,null,{"$f":"Podróże[[#This Row],[Budżet]]-Podróże[[#This Row],[Rzeczywiste]]","v":{"v":0,"d":"0.00 zł"}},{"$nulls":3},"Inne (naciśnij klawisz Tab w ostatniej kolumnie tego wiersza, aby dodać wiersz)",null,null,{"$f":"Różne[[#This Row],[Budżet]]-Różne[[#This Row],[Rzeczywiste]]","v":{"v":0,"d":"0.00 zł"}}]
[null,"Inne (naciśnij klawisz Tab w ostatniej kolumnie tego wiersza, aby dodać wiersz)",null,null,{"$f":"Podróże[[#This Row],[Budżet]]-Podróże[[#This Row],[Rzeczywiste]]","v":{"v":0,"d":"0.00 zł"}},{"$nulls":3},"Suma",{"$f":"SUBTOTAL(109,Różne[Budżet])","v":{"v":0,"d":"0.00 zł"}},{"$f":"SUBTOTAL(109,Różne[Rzeczywiste])","v":{"v":0,"d":"0.00 zł"}},{"$f":"SUBTOTAL(109,Różne[Różnica])","v":{"v":0,"d":"0.00 zł"}}]
[null,"Suma",{"$f":"SUBTOTAL(109,Podróże[Budżet])","v":{"v":0,"d":"0.00 zł"}},{"$f":"SUBTOTAL(109,Podróże[Rzeczywiste])","v":{"v":0,"d":"0.00 zł"}},{"$f":"SUBTOTAL(109,Podróże[Różnica])","v":{"v":0,"d":"0.00 zł"}}]